fUSD/lending_fUSD_20250123
["ID","MTS","AMOUNT","RATE_DAILY","PERIOD"]
[350084171,1737610236541,-500.0,0.00019452,2]
[350084172,1737610236573,-503.66455936,0.00019452,2]
[350084173,1737610236606,-500.0,0.00019452,2]
[350084174,1737610236639,-500.0,0.00019452,2]
[350084175,1737610236674,-500.0,0.00019452,2]
[350084176,1737610236709,-500.0,0.00019452,2]
[350084177,1737610236742,-500.0,0.00019452,2]
[350084178,1737610236776,-500.0,0.00019452,2]
[350084179,1737610236811,-1636.46,0.00019452,2]
[350084180,1737610236844,-692.95,0.00019452,2]
[350084181,1737610236878,-500.0,0.00019452,2]
[350084182,1737610236911,-500.0,0.00019452,2]
[350084183,1737610236943,-500.0,0.00019452,2]
[350084184,1737610236977,-632.13,0.00019452,2]
[350084185,1737610237009,-603.27,0.00019452,2]
[350084186,1737610237043,-594.95,0.00019452,2]
[350084187,1737610237075,-500.0,0.00019452,2]
[350084188,1737610237106,-527.02990747,0.00019452,2]
[350084189,1737610237141,-710.31,0.00019452,2]
[350084190,1737610237175,-538.32,0.00019452,2]
[350084191,1737610237208,-564.71,0.00019452,2]
[350084192,1737610237244,-500.0,0.00019452,2]
[350084193,1737610237279,-151.0,0.00019452,2]
[350084194,1737610237314,-740.02,0.00019452,2]
[350084195,1737610237350,-500.0,0.00019452,2]
[350084196,1737610237384,-500.0,0.00019452,2]
[350084197,1737610237421,-500.0,0.00019452,2]
[350084198,1737610237456,-1358.38,0.00019452,2]
[350084199,1737610237490,-1318.13,0.00019452,2]
[350084200,1737610237525,-1424.02,0.00019452,2]
[350084201,1737610237559,-500.0,0.00019452,2]
[350084202,1737610237593,-500.0,0.00019452,2]
[350084203,1737610237629,-780.97,0.00019452,2]
[350084204,1737610237664,-500.0,0.00019452,2]
[350084205,1737610237696,-151.0,0.00019452,2]
[350084206,1737610237729,-300.31290349,0.00019452,7]
[350084207,1737610237761,-655.8,0.00019452,2]
[350084208,1737610237795,-748.64,0.00019452,2]
[350084209,1737610237828,-500.0,0.00019452,2]
[350084210,1737610237865,-500.0,0.00019452,2]
[350084211,1737610237901,-500.0,0.00019452,2]
[350084212,1737610237935,-500.0,0.00019452,2]
[350084215,1737610237969,-500.0,0.00019452,2]
[350084221,1737610238002,-1346.92,0.00019452,2]
[350084226,1737610238037,-500.0,0.00019452,2]
[350084227,1737610238070,-151.0,0.00019452,2]
[350084228,1737610238103,-847.23,0.00019452,2]
[350084229,1737610238135,-500.0,0.00019452,2]
[350084230,1737610238170,-500.0,0.00019452,2]
[350084231,1737610238208,-926.22,0.00019452,2]
[350084232,1737610238241,-500.0,0.00019452,2]
[350084233,1737610238276,-500.0,0.00019452,2]
[350084234,1737610238311,-500.0,0.00019452,2]
[350084235,1737610238345,-500.0,0.00019452,2]
[350084236,1737610238377,-151.0,0.00019452,2]
[350084237,1737610238411,-500.0,0.00019452,2]
[350084238,1737610238444,-500.0,0.00019452,2]
[350084239,1737610238478,-500.0,0.00019452,2]
[350084240,1737610238511,-500.0,0.00019452,2]
[350084241,1737610238545,-926.26,0.00019452,2]
[350084243,1737610238580,-500.0,0.00019452,2]
[350084249,1737610238618,-500.0,0.00019452,2]
[350084289,1737610238844,-500.0,0.00019452,2]
[350084294,1737610238881,-500.0,0.00019452,2]
[350084299,1737610238914,-512.86236518,0.00019452,2]
[350084303,1737610238948,-530.44,0.00019452,2]
[350084307,1737610238981,-588.99,0.00019452,2]
[350084312,1737610239014,-1973.76,0.00019452,2]
[350084316,1737610239048,-151.0,0.00019452,2]
[350084321,1737610239082,-500.0,0.00019452,2]
[350084325,1737610239115,-500.0,0.00019452,2]
[350084330,1737610239151,-500.0,0.00019452,2]
[350084334,1737610239184,-500.0,0.00019452,2]
[350084338,1737610239219,-500.0,0.00019452,2]
[350084342,1737610239256,-500.0,0.00019452,2]
[350084346,1737610239290,-3399.31,0.00019452,2]
[350084349,1737610239324,-625.13,0.00019452,2]
[350084353,1737610239360,-691.93,0.00019452,2]
[350084357,1737610239394,-500.0,0.00019452,2]
[350084360,1737610239427,-244.77538308,0.00019452,2]
[350084364,1737610239461,-778.14,0.00019452,2]
[350084368,1737610239494,-500.0,0.00019452,2]
[350084372,1737610239527,-500.0,0.00019452,2]
[350084375,1737610239559,-1000.0,0.00019452,2]
[350084379,1737610239594,-500.0,0.00019452,2]
[350084383,1737610239628,-500.0,0.00019452,2]
[350084386,1737610239660,-500.0,0.00019452,2]
[350084390,1737610239693,-511.67839783,0.00019452,2]
[350084394,1737610239726,-500.0,0.00019452,2]
[350084398,1737610239759,-500.0,0.00019452,2]
[350084402,1737610239794,-816.6,0.00019452,2]
[350084406,1737610239829,-152.598299,0.00019452,2]
[350084411,1737610239864,-374.50473567,0.00019452,2]
[350084415,1737610239903,-1126.95,0.00019452,2]
[350084419,1737610239940,-1249.51,0.00019452,2]
[350084423,1737610239974,-500.0,0.00019452,2]
[350084427,1737610240008,-500.0,0.00019452,2]
[350084431,1737610240044,-500.0,0.00019452,2]
[350084437,1737610240080,-500.0,0.00019452,2]
[350084441,1737610240115,-500.0,0.00019452,2]
[350084445,1737610240150,-185.75308243,0.00019452,2]
[350084449,1737610240183,-1027.44,0.00019452,2]
[350084453,1737610240217,-500.0,0.00019452,2]
[350084457,1737610240254,-719.36,0.00019452,2]
[350084461,1737610240288,-500.0,0.00019452,2]
[350084465,1737610240324,-1060.81,0.00019452,2]
[350084470,1737610240359,-151.0,0.00019452,2]
[350084474,1737610240393,-1399.93,0.00019452,2]
[350084476,1737610240428,-509.09999664,0.00019452,2]
[350084477,1737610240464,-622.57,0.00019452,2]
[350084478,1737610240499,-626.59,0.00019452,2]
[350084479,1737610240534,-500.0,0.00019452,2]
[350084484,1737610240571,-500.0,0.00019452,2]
[350084489,1737610240606,-500.0,0.00019452,2]
[350084493,1737610240642,-500.0,0.00019452,2]
[350084498,1737610240680,-500.0,0.00019452,2]
[350084503,1737610240716,-1409.75,0.00019452,2]
[350084508,1737610240751,-500.0,0.00019452,2]
[350084512,1737610240784,-500.0,0.00019452,2]
[350084517,1737610240817,-521.842366,0.00019452,2]
[350084522,1737610240852,-1273.15,0.00019452,2]
[350084526,1737610240886,-300.0,0.00019452,2]
[350084531,1737610240920,-2208.58,0.00019452,2]
[350084535,1737610240955,-500.0,0.00019452,2]
[350084537,1737610240996,-505.90075112,0.00019452,2]
[350084538,1737610241030,-500.0,0.00019452,2]
[350084539,1737610241065,-500.0,0.00019452,2]
[350084540,1737610241100,-1894.01,0.00019452,2]
[350084541,1737610241135,-511.95975143,0.00019452,2]
[350084542,1737610241172,-1216.12,0.00019452,2]
[350084543,1737610241205,-500.0,0.00019452,2]
[350084544,1737610241241,-500.0,0.00019452,2]
[350084545,1737610241274,-1600.28,0.00019452,2]
[350084546,1737610241307,-500.0,0.00019452,2]
[350084547,1737610241340,-500.0,0.00019452,2]
[350084548,1737610241372,-500.0,0.00019452,2]
[350084549,1737610241404,-500.0,0.00019452,2]
[350084550,1737610241438,-594.3,0.00019452,2]
[350084551,1737610241471,-500.0,0.00019452,2]
[350084552,1737610241504,-548.16276063,0.00019452,2]
[350084553,1737610241536,-500.0,0.00019452,2]
[350084554,1737610241568,-500.0,0.00019452,2]
[350084555,1737610241601,-500.0,0.00019452,2]
[350084556,1737610241633,-575.18,0.00019452,2]
[350084557,1737610241667,-500.0,0.00019452,2]
[350084558,1737610241699,-502.94794006,0.00019452,2]
[350084559,1737610241736,-500.0,0.00019452,2]
[350084560,1737610241768,-601.64,0.00019452,2]
[350084561,1737610241802,-726.47,0.00019452,2]
[350084562,1737610241836,-500.0,0.00019452,2]
[350084563,1737610241871,-500.0,0.00019452,2]
[350084564,1737610241908,-304.79261849,0.00019452,2]
[350084565,1737610241942,-500.0,0.00019452,2]
[350084566,1737610241977,-714.5,0.00019452,2]
[350084567,1737610242011,-500.0,0.00019452,2]
[350084568,1737610242045,-151.0,0.00019452,2]
[350084569,1737610242078,-500.0,0.00019452,2]
[350084570,1737610242111,-500.0,0.00019452,2]
[350084571,1737610242143,-500.0,0.00019452,2]
[350084572,1737610242177,-1114.02,0.00019452,2]
[350084573,1737610242211,-500.0,0.00019452,2]
[350084574,1737610242248,-500.0,0.00019452,2]
[350084575,1737610242286,-1522.75,0.00019452,2]
[350084576,1737610242333,-151.0,0.00019452,2]
[350084577,1737610242366,-500.0,0.00019452,2]
[350084578,1737610242401,-500.0,0.00019452,2]
[350084579,1737610242434,-500.0,0.00019452,2]
[350084580,1737610242471,-500.0,0.00019452,2]
[350084581,1737610242505,-500.0,0.00019452,2]
[350084582,1737610242537,-513.68232798,0.00019452,2]
[350084583,1737610242571,-500.0,0.00019452,2]
[350084584,1737610242603,-500.0,0.00019452,2]
[350084585,1737610242635,-500.0,0.00019452,2]
[350084586,1737610242668,-500.0,0.00019452,2]
[350084587,1737610242702,-500.0,0.00019452,2]
[350084588,1737610242737,-745.84,0.00019452,2]
[350084589,1737610242770,-500.0,0.00019452,2]
[350084593,1737610242965,-151.0,0.00019452,2]
[350084594,1737610243000,-1110.3,0.00019452,2]
[350084595,1737610243035,-500.0,0.00019452,2]
[350084598,1737610243068,-500.0,0.00019452,2]
[350084604,1737610243107,-1098.36,0.00019452,2]
[350084606,1737610243141,-500.0,0.00019452,2]
[350084608,1737610243174,-619.30393,0.00019452,2]
[350084609,1737610243207,-500.0,0.00019452,2]
[350084610,1737610243243,-151.0,0.00019452,2]
[350084611,1737610243278,-717.13,0.00019452,2]
[350084612,1737610243318,-500.0,0.00019452,2]
[350084613,1737610243356,-500.0,0.00019452,2]
[350084614,1737610243392,-619.30393,0.00019452,2]
[350084615,1737610243428,-500.0,0.00019452,2]
[350084616,1737610243464,-500.0,0.00019452,2]
[350084617,1737610243499,-500.0,0.00019452,2]
[350084618,1737610243535,-500.0,0.00019452,2]
[350084619,1737610243571,-500.0,0.00019452,2]
[350084620,1737610243607,-729.52,0.00019452,2]
[350084621,1737610243643,-500.0,0.00019452,2]
[350084622,1737610243680,-151.721305,0.00019452,2]
[350084623,1737610243717,-857.89,0.00019452,2]
[350084624,1737610243752,-500.0,0.00019452,2]
[350084625,1737610243786,-500.0,0.00019452,2]
[350084626,1737610243821,-500.0,0.00019452,2]
[350084627,1737610243856,-500.0,0.00019452,2]
[350084628,1737610243894,-500.0,0.00019452,2]
[350084629,1737610243930,-151.0,0.00019452,2]
[350084630,1737610243966,-500.0,0.00019452,2]
[350084631,1737610244003,-524.68038865,0.00019452,2]
[350084632,1737610244039,-500.0,0.00019452,2]
[350084633,1737610244077,-782.47,0.00019452,2]
[350084634,1737610244113,-513.56,0.00019452,2]
[350084635,1737610244149,-500.0,0.00019452,2]
[350084636,1737610244187,-500.0,0.00019452,2]
[350084637,1737610244223,-500.0,0.00019452,2]
[350084638,1737610244264,-168.356264,0.00019452,2]
[350084639,1737610244305,-511.08,0.00019452,2]
[350084640,1737610244345,-500.0,0.00019452,2]
[350084641,1737610244380,-500.0,0.00019452,2]
[350084642,1737610244415,-500.0,0.00019452,2]
[350084643,1737610244451,-591.17,0.00019452,2]
[350084644,1737610244487,-784.7,0.00019452,2]
[350084645,1737610244522,-1302.6,0.00019452,2]
[350084646,1737610244556,-508.92473119,0.00019452,2]
[350084647,1737610244590,-500.0,0.00019452,2]
[350084648,1737610244625,-1306.88,0.00019452,2]
[350084649,1737610244660,-500.0,0.00019452,2]
[350084651,1737610244696,-500.0,0.00019452,2]
[350084653,1737610244731,-500.0,0.00019452,2]
[350084654,1737610244766,-519.11052692,0.00019452,2]
[350084655,1737610244801,-605.61,0.00019452,2]
[350084656,1737610244837,-692.36,0.00019452,2]
[350084657,1737610244873,-500.0,0.00019452,2]
[350084658,1737610244908,-500.0,0.00019452,2]
[350084659,1737610244942,-500.0,0.00019452,2]
[350084660,1737610244977,-985.88,0.00019452,2]
[350084661,1737610245011,-241.52073,0.00019452,2]
[350084662,1737610245046,-151.0,0.00019452,2]
[350084663,1737610245080,-605.76959962,0.00019452,2]
[350084664,1737610245115,-543.7,0.00019452,2]
[350084665,1737610245148,-241.52073,0.00019452,2]
[350084666,1737610245183,-516.31620601,0.00019452,2]
[350084667,1737610245218,-500.0,0.00019452,2]
[350084668,1737610245253,-500.0,0.00019452,2]
[350084669,1737610245288,-839.29,0.00019452,2]
[350084670,1737610245323,-500.0,0.00019452,2]
[350084671,1737610245357,-500.0,0.00019452,2]
[350084672,1737610245392,-711.46,0.00019452,2]
[350084673,1737610245426,-500.0,0.00019452,2]
[350084674,1737610245465,-500.0,0.00019452,2]
[350084675,1737610245500,-500.0,0.00019452,2]
[350084676,1737610245534,-500.0,0.00019452,2]
[350084677,1737610245569,-500.0,0.00019452,2]
[350084678,1737610245604,-2068.34,0.00019452,2]
[350084679,1737610245640,-2750.46,0.00019452,2]
[350084680,1737610245677,-3060.43,0.00019452,2]
[350084681,1737610245711,-500.0,0.00019452,2]
[350084682,1737610245746,-500.0,0.00019452,2]
[350084683,1737610245780,-500.0,0.00019452,2]
[350084684,1737610245816,-856.28,0.00019452,2]
[350084685,1737610245850,-248.86,0.00019455,2]
[350084686,1737610245890,-298.1,0.00019455,2]
[350084687,1737610245927,-327.01759143,0.00019521,2]
[350084688,1737610245961,-209.0,0.0001955,2]
[350084689,1737610245996,-151.0,0.0001956,2]
[350084690,1737610246032,-155.599283,0.00019562,2]
[350084691,1737610246068,-151.0,0.00019562,2]
[350084692,1737610246103,-151.0,0.00019562,2]
[350084693,1737610246139,-500.0,0.000196,7]
[350084694,1737610246176,-327.01759143,0.00019624,2]
[350084695,1737610246211,-150.51976849,0.00019626,2]
[350084696,1737610246248,-283.6635034,0.00019678,2]
[350084697,1737610246283,-5151.1180922,0.00019683,2]
[350084698,1737610246320,-1224.82096892,0.00019683,2]
[350084699,1737610246356,-734.0,0.000197,2]
[350084700,1737610246390,-745.0,0.000197,2]
[350084701,1737610246424,-462.0,0.000197,2]
[350084702,1737610246460,-800.0,0.000197,7]
[350084703,1737610246497,-1599.70275427,0.000197,2]
[350084704,1737610246534,-94524.34100493,0.000197,2]
[350084705,1737610246569,-3903.0,0.00019721,2]
[350084706,1737610246604,-150.0,0.00019721,2]
[350084707,1737610246639,-1176.0,0.00019721,2]
[350084708,1737610246673,-1106.0,0.00019721,2]
[350084710,1737610246709,-500.0,0.00019725,2]
[350084711,1737610246745,-500.0,0.00019725,2]
[350084712,1737610246779,-500.0,0.00019725,2]
[350084713,1737610246815,-500.0,0.00019725,2]
[350084714,1737610246848,-500.0,0.00019725,2]
[350084715,1737610246883,-500.0,0.00019725,2]
[350084716,1737610246916,-2070.0,0.00019726,2]
[350084717,1737610246951,-372.951312,0.00019726,2]
[350084718,1737610246986,-350.074926,0.00019726,2]
[350084719,1737610247020,-290.69211282,0.00019726,2]
[350084720,1737610247204,-500.0,0.00019726,2]
[350084721,1737610247246,-503.40360493,0.00019726,2]
[350084722,1737610247283,-500.0,0.00019726,2]
[350084723,1737610247334,-500.0,0.00019726,2]
[350084724,1737610247373,-304.49320659,0.00019726,2]
[350084725,1737610247412,-282.0,0.00019726,2]
[350084726,1737610247453,-500.0,0.00019726,2]
[350084727,1737610247492,-500.0,0.00019726,2]
[350084728,1737610247528,-500.0,0.00019726,2]
[350084729,1737610247563,-151.0,0.00019726,2]
[350084730,1737610247598,-152.920707,0.00019726,2]
[350084731,1737610247633,-500.0,0.00019726,2]
[350084732,1737610247669,-500.0,0.00019726,2]
[350084733,1737610247703,-500.0,0.00019726,2]
[350084734,1737610247738,-500.0,0.00019726,2]
[350084735,1737610247772,-500.0,0.00019726,2]
[350084736,1737610247806,-606.96224177,0.00019726,2]
[350084737,1737610247841,-500.0,0.00019726,2]
[350084738,1737610247876,-500.0,0.00019726,2]
[350084739,1737610247909,-500.0,0.00019726,2]
[350084740,1737610247942,-500.0,0.00019726,2]
[350084741,1737610247978,-500.0,0.00019726,2]
[350084742,1737610248013,-500.0,0.00019726,2]
[350084743,1737610248049,-500.0,0.00019726,2]
[350084744,1737610248084,-512.25785272,0.00019726,2]
[350084745,1737610248124,-500.0,0.00019726,2]
[350084746,1737610248159,-500.0,0.00019726,2]
[350084747,1737610248194,-500.0,0.00019726,2]
[350084748,1737610248234,-500.0,0.00019726,2]
[350084749,1737610248275,-500.0,0.00019726,2]
[350084750,1737610248320,-506.0663577,0.00019726,2]
[350084751,1737610248358,-500.0,0.00019726,2]
[350084752,1737610248394,-511.89272855,0.00019726,2]
[350084753,1737610248430,-500.0,0.00019726,2]
[350084754,1737610248467,-500.0,0.00019726,2]
[350084755,1737610248504,-513.58730241,0.00019726,2]
[350084756,1737610248542,-500.0,0.00019726,2]
[350084757,1737610248579,-500.0,0.00019726,2]
[350084758,1737610248615,-500.0,0.00019726,2]
[350084759,1737610248650,-526.46664265,0.00019726,2]
[350084760,1737610248689,-500.0,0.00019726,2]
[350084761,1737610248726,-500.0,0.00019726,2]
[350084762,1737610248762,-500.0,0.00019726,2]
[350084763,1737610248796,-500.0,0.00019726,2]
[350084764,1737610248830,-157.051259,0.00019726,2]
[350084765,1737610248863,-500.0,0.00019726,2]
[350084766,1737610248899,-500.0,0.00019726,2]
[350084767,1737610248938,-500.0,0.00019726,2]
[350084768,1737610248973,-500.0,0.00019726,2]
[350084769,1737610249008,-173.07828074,0.00019726,2]
[350084770,1737610249043,-540.04735556,0.00019726,2]
[350084771,1737610249078,-500.0,0.00019726,2]
[350084772,1737610249112,-531.26344786,0.00019726,2]
[350084773,1737610249147,-500.0,0.00019726,2]
[350084774,1737610249181,-151.648961,0.00019726,2]
[350084775,1737610249215,-500.0,0.00019726,2]
[350084776,1737610249251,-509.04562352,0.00019726,2]
[350084777,1737610249287,-500.0,0.00019726,2]
[350084778,1737610249323,-509.41326168,0.00019726,2]
[350084779,1737610249359,-500.0,0.00019726,2]
[350084780,1737610249394,-500.0,0.00019726,2]
[350084781,1737610249429,-489.57933605,0.00019726,2]
[350084782,1737610249464,-516.71626997,0.00019726,2]
[350084783,1737610249500,-289.02667022,0.00019726,2]
[350084784,1737610249535,-500.0,0.00019726,2]
[350084785,1737610249570,-500.0,0.00019726,2]
[350084786,1737610249606,-500.0,0.00019726,2]
[350084787,1737610249641,-500.0,0.00019726,2]
[350084788,1737610249676,-500.0,0.00019726,2]
[350084789,1737610249711,-500.0,0.00019726,2]
[350084790,1737610249751,-500.0,0.00019726,2]
[350084791,1737610249787,-151.663333,0.00019726,2]
[350084792,1737610249823,-500.0,0.00019726,2]
[350084793,1737610249858,-512.9540702,0.00019726,2]
[350084794,1737610249897,-500.0,0.00019726,2]
[350084795,1737610249935,-500.0,0.00019726,2]
[350084796,1737610249970,-153.051506,0.00019726,2]
[350084797,1737610250009,-500.0,0.00019726,2]
[350084798,1737610250044,-426.28573943,0.00019726,2]
[350084799,1737610250079,-348.16675758,0.00019726,2]
[350084800,1737610250114,-500.0,0.00019726,2]
[350084801,1737610250147,-151.0,0.00019726,2]
[350084802,1737610250182,-500.0,0.00019726,2]
[350084803,1737610250218,-500.0,0.00019726,2]
[350084804,1737610250259,-500.0,0.00019726,2]
[350084805,1737610250293,-508.83939441,0.00019726,2]
[350084806,1737610250326,-500.0,0.00019726,2]
[350084807,1737610250361,-500.0,0.00019726,2]
[350084808,1737610250396,-183.345988,0.00019726,2]
[350084809,1737610250431,-183.345988,0.00019726,2]
[350084810,1737610250464,-500.0,0.00019726,2]
[350084811,1737610250499,-151.0,0.00019726,2]
[350084812,1737610250533,-500.0,0.00019726,2]
[350084813,1737610250567,-500.0,0.00019726,2]
[350084814,1737610250599,-501.71215909,0.00019726,2]
[350084815,1737610250632,-500.0,0.00019726,2]
[350084816,1737610250665,-500.0,0.00019726,2]
[350084817,1737610250698,-609.19,0.00019726,2]
[350084818,1737610250731,-500.0,0.00019726,2]
[350084819,1737610250763,-500.0,0.00019726,2]
[350084820,1737610250795,-500.0,0.00019726,2]
[350084821,1737610250828,-748.6154,0.00019726,2]
[350084822,1737610250861,-500.0,0.00019726,2]
[350084823,1737610250897,-152.524198,0.00019726,2]
[350084824,1737610250930,-500.0,0.00019726,2]
[350084825,1737610250962,-500.0,0.00019726,2]
[350084826,1737610250998,-748.6154,0.00019726,2]
[350084827,1737610251031,-500.0,0.00019726,2]
[350084828,1737610251067,-500.0,0.00019726,2]
[350084829,1737610251100,-500.0,0.00019726,2]
[350084830,1737610251137,-500.0,0.00019726,2]
[350084831,1737610251172,-500.0,0.00019726,2]
[350084832,1737610251207,-500.0,0.00019726,2]
[350084833,1737610251244,-500.0,0.00019726,2]
[350084834,1737610251465,-151.0,0.00019726,2]
[350084835,1737610251504,-500.0,0.00019726,2]
[350084836,1737610251540,-500.0,0.00019726,2]
[350084837,1737610251576,-500.0,0.00019726,2]
[350084838,1737610251612,-500.0,0.00019726,2]
[350084839,1737610251649,-500.0,0.00019726,2]
[350084840,1737610251686,-500.0,0.00019726,2]
[350084841,1737610251721,-506.69590842,0.00019726,2]
[350084842,1737610251759,-500.0,0.00019726,2]
[350084843,1737610251794,-639.5,0.00019726,2]
[350084844,1737610251829,-500.0,0.00019726,2]
[350084845,1737610251865,-245.45078146,0.00019726,2]
[350084846,1737610251900,-500.0,0.00019726,2]
[350084847,1737610251937,-500.0,0.00019726,2]
[350084848,1737610251972,-500.0,0.00019726,2]
[350084849,1737610252007,-500.0,0.00019726,2]
[350084850,1737610252042,-500.0,0.00019726,2]
[350084851,1737610252077,-500.0,0.00019726,2]
[350084852,1737610252112,-500.0,0.00019726,2]
[350084853,1737610252146,-500.0,0.00019726,2]
[350084854,1737610252180,-500.0,0.00019726,2]
[350084855,1737610252214,-500.0,0.00019726,2]
[350084856,1737610252252,-500.0,0.00019726,2]
[350084857,1737610252288,-500.0,0.00019726,2]
[350084858,1737610252324,-524.78604703,0.00019726,2]
[350084859,1737610252360,-500.0,0.00019726,2]
[350084860,1737610252394,-500.0,0.00019726,2]
[350084861,1737610252431,-500.0,0.00019726,2]
[350084862,1737610252465,-500.0,0.00019726,2]
[350084863,1737610252500,-500.0,0.00019726,2]
[350084864,1737610252535,-500.0,0.00019726,2]
[350084865,1737610252570,-500.0,0.00019726,2]
[350084866,1737610252606,-500.0,0.00019726,2]
[350084867,1737610252641,-500.0,0.00019726,2]
[350084868,1737610252677,-500.0,0.00019726,2]
[350084869,1737610252711,-500.0,0.00019726,2]
[350084870,1737610252745,-302.13695653,0.00019726,2]
[350084871,1737610252779,-500.0,0.00019726,2]
[350084872,1737610252814,-500.0,0.00019726,2]
[350084873,1737610252848,-500.0,0.00019726,2]
[350084874,1737610252882,-702.75,0.00019726,2]
[350084875,1737610252917,-500.0,0.00019726,2]
[350084876,1737610252951,-500.0,0.00019726,2]
[350084877,1737610252987,-500.0,0.00019726,2]
[350084878,1737610253022,-500.0,0.00019726,2]
[350084879,1737610253058,-500.0,0.00019726,2]
[350084880,1737610253092,-500.0,0.00019726,2]
[350084881,1737610253127,-500.0,0.00019726,2]
[350084882,1737610253162,-500.0,0.00019726,2]
[350084883,1737610253196,-500.0,0.00019726,2]
[350084884,1737610253233,-500.0,0.00019726,2]
[350084885,1737610253278,-597.69288765,0.00019726,2]
[350084886,1737610253316,-500.0,0.00019726,2]
[350084887,1737610253355,-500.0,0.00019726,2]
[350084888,1737610253389,-515.92875084,0.00019726,2]
[350084889,1737610253425,-500.0,0.00019726,2]
[350084890,1737610253461,-500.0,0.00019726,2]
[350084891,1737610253497,-500.0,0.00019726,2]
[350084892,1737610253533,-500.0,0.00019726,2]
[350084893,1737610253570,-500.0,0.00019726,2]
[350084894,1737610253610,-500.0,0.00019726,2]
[350084895,1737610253646,-507.10309,0.00019726,2]
[350084896,1737610253681,-199.19380736,0.00019726,2]
[350084897,1737610253716,-509.44838685,0.00019726,2]
[350084898,1737610253752,-500.0,0.00019726,2]
[350084899,1737610253786,-500.0,0.00019726,2]
[350084900,1737610253820,-477.79257661,0.00019726,2]
[350084901,1737610253856,-500.0,0.00019726,2]
[350084902,1737610253892,-500.0,0.00019726,2]
[350084903,1737610253929,-500.0,0.00019726,2]
[350084904,1737610253965,-500.0,0.00019726,2]
[350084905,1737610254001,-500.0,0.00019726,2]
[350084906,1737610254035,-500.0,0.00019726,2]
[350084907,1737610254070,-500.0,0.00019726,2]
[350084908,1737610254105,-500.0,0.00019726,2]
[350084909,1737610254139,-500.0,0.00019726,2]
[350084910,1737610254172,-517.56610013,0.00019726,2]
[350084911,1737610254206,-500.0,0.00019726,2]
[350084912,1737610254242,-500.0,0.00019726,2]
[350084913,1737610254279,-500.0,0.00019726,2]
[350084914,1737610254314,-459.75060369,0.00019726,2]
[350084915,1737610254350,-500.0,0.00019726,2]
[350084916,1737610254386,-500.0,0.00019726,2]
[350084917,1737610254425,-500.0,0.00019726,2]
[350084918,1737610254463,-500.0,0.00019726,2]
[350084919,1737610254502,-500.0,0.00019726,2]
[350084920,1737610254540,-500.0,0.00019726,2]
[350084921,1737610254578,-500.0,0.00019726,2]
[350084922,1737610254615,-506.47,0.00019726,2]
[350084923,1737610254651,-500.0,0.00019726,2]
[350084924,1737610254686,-500.0,0.00019726,2]
[350084925,1737610254721,-516.42773125,0.00019726,2]
[350084926,1737610254757,-500.0,0.00019726,2]
[350084927,1737610254794,-500.0,0.00019726,2]